bitfinex-derivatives/quotes_BTCF0:USTF0_20250121
["timestamp","ask_amount","ask_price","bid_price","bid_amount"]
[1737420948961,0.53972526,101510.0,101480.0,0.67466917]
[1737420949174,0.53972526,101510.0,101490.0,0.46359062]
[1737420949175,0.57918026,101510.0,101490.0,0.46359062]
[1737420949373,9.727e-05,101500.0,101490.0,0.46359062]
[1737420949570,0.039451,101520.0,101490.0,0.50305162]
[1737420950370,0.53972526,101530.0,101490.0,0.46359062]
[1737420950573,0.21837126,101530.0,101510.0,0.3608]
[1737420950802,9.293e-05,101520.0,101500.0,0.039456]
[1737420951381,0.57916426,101550.0,101530.0,0.039446]
[1737420951587,0.57916426,101550.0,101530.0,0.400246]
[1737420951876,0.57916426,101550.0,101530.0,0.039446]
[1737420952273,0.400242,101540.0,101510.0,0.71635]
[1737420952470,0.17892526,101530.0,101510.0,0.35555]
[1737420952974,0.53972526,101550.0,101530.0,0.039445]
[1737420953178,0.17203798,101540.0,101530.0,0.039445]
[1737420953973,0.20071098,101560.0,101530.0,0.3608]
[1737420954269,0.37963624,101560.0,101530.0,0.552145]
[1737420954479,0.37963624,101560.0,101530.0,0.191345]
[1737420954780,0.41907024,101560.0,101540.0,0.039442]
[1737420955172,0.20071098,101560.0,101550.0,0.039438]
[1737420957282,0.11492796,101560.0,101550.0,0.039438]
[1737420957875,0.11492796,101560.0,101540.0,0.400242]
[1737420958385,0.11492796,101560.0,101550.0,0.039438]
[1737420959082,0.11492796,101560.0,101550.0,0.203438]
[1737420959272,0.11492796,101560.0,101550.0,0.164]
[1737420959473,0.33328722,101560.0,101550.0,0.164]
[1737420959779,0.039439,101550.0,101530.0,0.552146]
[1737420959978,0.29385322,101560.0,101540.0,0.3608]
[1737420960183,0.11492796,101560.0,101550.0,0.400238]
[1737420960373,0.11492796,101560.0,101530.0,0.5127]
[1737420960579,0.039442,101540.0,101530.0,0.552146]
[1737420960777,0.039442,101540.0,101520.0,0.20492734]
[1737420961176,0.47572796,101560.0,101520.0,0.16547734]
[1737420961484,0.400246,101530.0,101520.0,0.16547734]
[1737420961785,0.21837126,101530.0,101520.0,0.00147734]
[1737420962080,0.17892526,101550.0,101520.0,0.00147734]
[1737420962272,0.039445,101540.0,101520.0,0.04092634]
[1737420962478,0.039445,101540.0,101520.0,0.00147734]
[1737420962674,1.5,101540.0,101520.0,0.00147734]
[1737420962874,0.21837126,101530.0,101520.0,0.00147734]
[1737420963084,0.03945,101520.0,101510.0,7.09e-05]
[1737420963277,0.40025,101520.0,101510.0,7.09e-05]
[1737420963983,0.03945,101520.0,101510.0,7.09e-05]
[1737420964384,1.90025,101520.0,101510.0,7.09e-05]
[1737420964685,1.53945,101520.0,101510.0,7.09e-05]
[1737420965189,1.90025,101520.0,101510.0,7.09e-05]
[1737420965384,0.039459,101500.0,101480.0,0.36227784]
[1737420965588,1.8608,101520.0,101490.0,0.039461]
[1737420965589,1.900253,101520.0,101490.0,0.039461]
[1737420965790,1.539453,101520.0,101490.0,0.039461]
[1737420965987,0.039453,101520.0,101490.0,0.039461]
[1737420966285,0.3608,101530.0,101510.0,0.3608]
[1737420966478,7.09e-05,101520.0,101510.0,0.40016674]
[1737420966679,7.09e-05,101520.0,101510.0,0.400253]
[1737420968184,0.0395209,101520.0,101510.0,0.3608]
[1737420968378,0.47572796,101530.0,101510.0,0.3604941]
[1737420968592,0.47572796,101530.0,101520.0,0.03945]
[1737420968984,0.47572796,101530.0,101510.0,0.6772941]
[1737420968985,0.11492796,101530.0,101510.0,0.6772941]
[1737420969280,0.03945,101520.0,101510.0,0.1644]
[1737420969486,0.03945,101520.0,101480.0,0.67907784]
[1737420969687,0.65465322,101530.0,101490.0,0.3608]
[1737420969884,0.65465322,101530.0,101480.0,0.71854284]
[1737420970085,0.17892526,101510.0,101480.0,0.36227784]
[1737420970289,0.17892526,101510.0,101480.0,0.00147784]
[1737420970290,0.21838626,101490.0,101480.0,0.00147784]
[1737420970483,0.039465,101480.0,101470.0,0.0001051]
[1737420972093,0.3608,101490.0,101470.0,0.0001051]
[1737420972281,0.3608,101490.0,101480.0,0.039465]
[1737420972591,0.04093283,101510.0,101480.0,0.3608]
[1737420972784,0.00147883,101510.0,101500.0,0.3608]
[1737420972985,0.00147883,101510.0,101500.0,0.039457]
[1737420973588,0.00147883,101510.0,101490.0,0.3608]
[1737420973796,0.00147883,101510.0,101500.0,0.039457]
[1737420974093,0.21836026,101560.0,101500.0,0.53972526]
[1737420974288,0.21836026,101560.0,101530.0,0.400245]
[1737420974289,0.039438,101550.0,101530.0,0.400245]
[1737420974485,0.039438,101550.0,101530.0,0.039445]
[1737420974690,0.18706213,101560.0,101530.0,0.039445]
[1737420975086,0.18706213,101560.0,101530.0,0.0393224]
[1737420975289,0.039439,101550.0,101520.0,0.354048]
[1737420975490,0.039439,101550.0,101530.0,0.039446]
[1737420976087,0.039439,101550.0,101520.0,0.6754]
[1737420976088,0.21836926,101540.0,101520.0,0.3608]
[1737420976391,0.039438,101550.0,101530.0,0.039445]
[1737420976785,0.00813687,101560.0,101530.0,0.400245]
[1737420976993,0.00813687,101560.0,101540.0,0.3608]
[1737420976994,0.14476967,101550.0,101540.0,0.3608]
[1737420977199,0.1737236,101560.0,101550.0,0.039438]
[1737420977692,0.1737236,101560.0,101550.0,0.400238]
[1737420978000,0.1737236,101560.0,101550.0,0.039438]
[1737420978597,0.1737236,101560.0,101550.0,0.49870681]
[1737420978895,0.20071098,101580.0,101570.0,0.03943]
[1737420979394,0.27028474,101590.0,101570.0,0.70023]
[1737420979395,0.22938398,101590.0,101570.0,0.70023]
[1737420979587,0.25805697,101630.0,101600.0,0.039419]
[1737420979797,0.25805697,101630.0,101620.0,0.761011]
[1737420979992,0.29746397,101630.0,101600.0,0.400217]
[1737420980295,0.039417,101610.0,101580.0,0.562723]
[1737420980806,0.039422,101590.0,101570.0,0.3608]
[1737420980990,0.039422,101590.0,101560.0,0.3608]
[1737420980991,0.17892526,101590.0,101560.0,0.3608]
[1737420981188,0.03943,101570.0,101560.0,0.3608]
[1737420981901,0.03943,101570.0,101550.0,0.199938]
[1737420982098,1.5,101570.0,101550.0,0.1605]
[1737420982598,0.039437,101560.0,101540.0,0.04103816]
[1737420982795,0.039437,101560.0,101540.0,0.40183816]
[1737420983194,0.039438,101550.0,101540.0,0.00160016]
[1737420983395,1.5,101570.0,101540.0,0.40184116]
[1737420983596,0.039434,101560.0,101540.0,0.40184116]
[1737420983787,0.039434,101560.0,101540.0,0.04104116]
[1737420983991,0.039438,101550.0,101540.0,0.00160016]
[1737420984398,0.039438,101550.0,101540.0,0.00012341]
[1737420984598,0.03945,101520.0,101500.0,0.9037833]
[1737420984798,0.53972526,101530.0,101500.0,0.7429833]
[1737420984994,0.039453,101510.0,101500.0,0.7429833]
[1737420985301,0.57917826,101510.0,101500.0,0.7429833]
[1737420985694,0.57917826,101510.0,101500.0,0.74150554]
[1737420986497,0.21837826,101510.0,101500.0,0.74150554]
[1737420986994,0.039465,101480.0,101470.0,8.094e-05]
[1737420987903,0.03946,101500.0,101470.0,8.094e-05]
[1737420988202,0.039457,101500.0,101480.0,0.039463]
[1737420988592,0.039461,101490.0,101470.0,8.094e-05]
[1737420989199,0.039465,101480.0,101470.0,8.094e-05]
[1737420989397,0.400265,101480.0,101470.0,8.094e-05]
[1737420989594,0.039465,101480.0,101470.0,8.094e-05]
[1737420990394,0.3608,101490.0,101470.0,8.094e-05]
[1737420990600,0.17892526,101500.0,101470.0,8.094e-05]
[1737420990601,0.039462,101480.0,101470.0,8.094e-05]
[1737420991193,0.21838726,101480.0,101470.0,8.094e-05]
[1737420991509,0.57918726,101480.0,101470.0,8.094e-05]
[1737420991999,0.039462,101480.0,101470.0,8.094e-05]
[1737420992499,0.21838726,101480.0,101470.0,8.094e-05]
[1737420992699,0.039462,101480.0,101470.0,8.094e-05]
[1737420993604,0.47674091,101490.0,101470.0,8.094e-05]
[1737420993807,0.11594091,101490.0,101470.0,0.40034594]
[1737420993997,0.11594091,101490.0,101470.0,0.03954594]
[1737420994303,0.11594091,101490.0,101470.0,0.40034594]
[1737420994505,0.11594091,101490.0,101480.0,0.039463]
[1737420994900,0.11594091,101490.0,101480.0,0.189863]
[1737420995894,0.15539991,101490.0,101480.0,0.1504]
[1737420996204,0.15539991,101490.0,101470.0,0.36088094]
[1737420996205,0.15539991,101490.0,101470.0,0.40034794]
[1737420996403,0.11594091,101490.0,101470.0,0.40034794]
[1737420996611,0.11594091,101490.0,101480.0,0.400265]
[1737420996905,0.11676441,101510.0,101480.0,0.53972526]
[1737420997106,0.039443,101540.0,101520.0,0.039447]
[1737420997496,0.039443,101540.0,101510.0,0.3608]
[1737420997701,0.039446,101530.0,101510.0,0.400252]
[1737420998002,0.039441,101540.0,101520.0,0.039447]
[1737420998509,0.2478406,101550.0,101530.0,0.039444]
[1737420998901,0.2478406,101550.0,101530.0,0.400244]
[1737420999102,0.2426648,101550.0,101530.0,0.400244]
[1737421000605,0.2426648,101550.0,101530.0,0.3608]
[1737421000806,0.42159006,101550.0,101530.0,0.3608]
[1737421001412,0.2032278,101550.0,101530.0,0.400243]
[1737421001597,0.00147852,101550.0,101530.0,0.400243]
[1737421002211,0.039439,101540.0,101530.0,0.3608]
[1737421002411,0.039439,101540.0,101520.0,0.039446]
[1737421002707,0.17892526,101530.0,101510.0,0.3608]
[1737421002912,0.039453,101510.0,101490.0,0.19973576]
[1737421003206,0.53972526,101530.0,101490.0,0.16027776]
[1737421003510,1.5,101500.0,101490.0,0.16027776]
[1737421003815,1.539455,101500.0,101490.0,0.16027776]
[1737421004303,0.039455,101500.0,101490.0,0.00147776]
[1737421004496,0.3608,101520.0,101490.0,0.00147776]
[1737421004703,0.039451,101510.0,101490.0,0.04093476]
[1737421004906,1.539447,101520.0,101500.0,0.400253]
[1737421005114,1.539447,101520.0,101510.0,0.3608]
[1737421005115,0.039447,101520.0,101510.0,0.3608]
[1737421005314,0.039447,101520.0,101500.0,0.400253]
[1737421005511,0.039447,101520.0,101500.0,0.039453]
[1737421007913,0.3608,101540.0,101510.0,0.3608]
[1737421008114,0.04091452,101550.0,101530.0,0.039442]
[1737421009017,0.54120378,101550.0,101520.0,0.5305]
[1737421009207,0.04091452,101550.0,101530.0,0.03944]
[1737421009412,0.00147852,101550.0,101540.0,0.761039]
[1737421009619,0.04091752,101550.0,101530.0,0.039442]
[1737421009930,0.08632204,101540.0,101530.0,0.039442]
[1737421011427,0.12576104,101540.0,101520.0,0.569946]
[1737421011625,0.039443,101530.0,101510.0,0.5244]
[1737421011830,0.039443,101530.0,101500.0,0.039452]
[1737421011831,0.039451,101510.0,101500.0,0.3608]
[1737421012032,1.539448,101520.0,101500.0,0.400255]
[1737421012430,0.08632204,101540.0,101500.0,0.3608]
[1737421012631,0.039444,101530.0,101510.0,0.03945]
[1737421012826,0.039444,101530.0,101500.0,0.3608]
[1737421013031,0.039444,101530.0,101510.0,0.03945]
[1737421013230,1.58632204,101540.0,101520.0,0.3608]
[1737421013231,0.08632204,101540.0,101520.0,0.3608]
[1737421013425,0.14534859,101550.0,101530.0,0.400243]
[1737421013731,0.14387007,101550.0,101540.0,0.57916426]
[1737421014032,0.039435,101550.0,101540.0,0.039439]
[1737421014231,0.58440253,101580.0,101530.0,0.702]
[1737421014534,0.039433,101560.0,101550.0,0.400235]
[1737421014937,0.039424,101580.0,101540.0,0.400238]
[1737421015125,0.03943,101570.0,101550.0,0.039435]
[1737421015632,0.40554543,101590.0,101550.0,0.039435]
[1737421015831,0.03943,101570.0,101550.0,0.039435]
[1737421016031,0.039433,101560.0,101540.0,0.400239]
[1737421016340,0.039429,101570.0,101550.0,0.039435]
[1737421016541,0.3608,101580.0,101550.0,0.039435]
[1737421016733,0.039429,101570.0,101550.0,0.039435]
[1737421017036,0.039429,101570.0,101540.0,0.3608]
[1737421017037,0.04474643,101590.0,101540.0,0.53972526]
[1737421017239,0.04474643,101590.0,101560.0,0.3608]
[1737421017433,0.30322674,101600.0,101580.0,0.7216]
[1737421017638,0.30322674,101600.0,101590.0,0.39922]
[1737421017838,0.30322674,101600.0,101590.0,0.3598]
[1737421018038,0.30322674,101600.0,101580.0,0.3608]
[1737421018236,0.34264274,101600.0,101580.0,0.3608]
[1737421018541,0.10147746,101600.0,101590.0,0.40022]
[1737421018734,0.43363111,101610.0,101590.0,0.40022]
[1737421018947,0.25893698,101620.0,101610.0,0.039412]
[1737421019128,0.31407904,101640.0,101610.0,0.039412]
[1737421019129,0.31407904,101640.0,101610.0,0.3608]
[1737421019442,0.31407904,101640.0,101630.0,0.7216]
[1737421019745,0.31407904,101640.0,101630.0,0.761004]
[1737421020038,0.2855264,101660.0,101650.0,0.039397]
[1737421020228,0.2855264,101660.0,101630.0,0.13780398]
[1737421020434,0.0394,101640.0,101620.0,0.40032804]
[1737421020628,0.039403,101640.0,101620.0,0.36092004]
[1737421020838,0.3608,101650.0,101620.0,0.00012004]
[1737421021042,0.039404,101630.0,101620.0,0.00012004]
[1737421022043,0.3249204,101660.0,101640.0,0.039399]
[1737421022431,0.2855264,101660.0,101650.0,0.400197]
[1737421023146,0.2855264,101660.0,101650.0,0.49856894]
[1737421023345,0.36140001,101680.0,101650.0,0.49856894]
[1737421023346,1.5,101700.0,101650.0,0.45917194]
[1737421023644,0.039375,101710.0,101680.0,0.400184]
[1737421023847,0.039378,101700.0,101670.0,0.3608]
[1737421024139,0.039383,101690.0,101670.0,0.3608]
[1737421024349,0.039387,101680.0,101660.0,0.3608]
[1737421024935,0.400178,101700.0,101670.0,0.3608]
[1737421025137,0.400178,101700.0,101670.0,0.57911326]
[1737421025338,0.400178,101700.0,101680.0,0.3608]
[1737421025534,0.58566337,101720.0,101690.0,0.039381]
[1737421026145,0.039375,101710.0,101680.0,0.3608]
[1737421026450,0.039375,101710.0,101680.0,0.400185]
[1737421026631,0.00529237,101720.0,101690.0,0.400179]
[1737421026836,0.91458022,101730.0,101690.0,0.400179]
[1737421026837,0.91458022,101730.0,101700.0,0.3608]
[1737421027237,0.91458022,101730.0,101700.0,0.400177]
[1737421027437,0.88040638,101730.0,101700.0,0.400176]
[1737421027836,0.17850638,101730.0,101710.0,0.400172]
[1737421028044,0.17850638,101730.0,101720.0,0.03937]
[1737421028337,0.17331322,101730.0,101720.0,0.57909526]
[1737421028643,0.039373,101710.0,101700.0,0.0001174]
[1737421028842,0.53972526,101710.0,101660.0,0.400192]
[1737421029043,0.53972526,101680.0,101640.0,0.5297]
[1737421029243,0.53972526,101680.0,101660.0,0.03939]
[1737421029952,0.00011508,101670.0,101660.0,0.03939]
[1737421030450,0.00011508,101670.0,101660.0,0.13774743]
[1737421030748,0.53972526,101700.0,101680.0,0.039382]
[1737421031348,0.57910426,101700.0,101680.0,0.039382]
[1737421031540,0.53972526,101710.0,101690.0,0.039381]
[1737421031742,0.3608,101720.0,101710.0,0.039374]
[1737421031942,0.3608,101720.0,101680.0,0.45916226]
[1737421031943,0.36227548,101740.0,101700.0,0.53972526]
[1737421032248,0.3608,101740.0,101730.0,0.039366]
[1737421032448,0.3608,101760.0,101740.0,0.039362]
[1737421032649,0.3608,101760.0,101740.0,0.038362]
[1737421032845,0.579951,101770.0,101740.0,0.038362]
[1737421033048,0.3608,101760.0,101740.0,0.038362]
[1737421033249,0.579951,101770.0,101740.0,0.038362]
[1737421033451,0.3608,101750.0,101730.0,0.039365]
[1737421033857,0.400158,101750.0,101730.0,0.039365]
[1737421034357,0.400162,101740.0,101710.0,0.216071]
[1737421034648,0.3608,101720.0,101710.0,0.039371]
[1737421035349,0.3608,101720.0,101700.0,8.688e-05]
[1737421035550,0.400174,101710.0,101700.0,8.688e-05]
[1737421037045,0.3608,101710.0,101700.0,8.688e-05]
[1737421037251,0.5423,101720.0,101700.0,8.688e-05]
[1737421037452,0.3608,101710.0,101700.0,8.688e-05]
[1737421037662,0.581672,101720.0,101700.0,8.688e-05]
[1737421037955,0.581672,101720.0,101700.0,0.03946388]
[1737421038157,0.3608,101710.0,101700.0,0.03946388]
[1737421038356,0.3608,101710.0,101700.0,8.688e-05]
[1737421038556,0.400173,101710.0,101700.0,8.688e-05]
[1737421038753,0.25247229,101710.0,101700.0,8.688e-05]
[1737421039152,0.25247229,101710.0,101660.0,0.039391]
[1737421039352,0.3608,101690.0,101660.0,0.039391]
[1737421039652,0.3608,101670.0,101650.0,0.09832358]
[1737421039852,0.400193,101660.0,101640.0,0.0394]
[1737421040159,0.039401,101640.0,101630.0,0.0014759]
[1737421040356,0.53981446,101640.0,101610.0,0.35099777]
[1737421040653,0.039412,101610.0,101600.0,0.00012337]
[1737421040854,0.400212,101610.0,101600.0,0.00012337]
[1737421041056,0.039416,101600.0,101590.0,0.40776282]
[1737421041258,0.57914126,101600.0,101590.0,0.13906282]
[1737421041451,0.03942,101590.0,101580.0,0.46601465]
[1737421041645,0.40022,101590.0,101580.0,0.46601465]
[1737421041853,0.3608,101590.0,101580.0,0.46601465]
[1737421042158,0.3609067,101590.0,101580.0,0.46601465]
[1737421042561,0.40022,101590.0,101580.0,0.46601465]
[1737421042858,0.039428,101570.0,101560.0,0.6352043]
[1737421043060,0.3608,101570.0,101560.0,0.6352043]
[1737421043259,0.36087173,101570.0,101560.0,0.6352043]
[1737421044763,0.72167173,101570.0,101560.0,0.6352043]
[1737421045056,0.36087173,101570.0,101560.0,0.6352043]
[1737421045462,7.173e-05,101570.0,101560.0,0.6352043]
[1737421045954,0.36087173,101570.0,101560.0,0.6352043]
[1737421046264,0.36087173,101570.0,101560.0,0.04090897]
[1737421047461,0.36087173,101570.0,101560.0,0.00147697]
[1737421047663,7.173e-05,101570.0,101560.0,0.00147697]
[1737421047863,7.173e-05,101570.0,101560.0,0.04091097]
[1737421048060,7.173e-05,101570.0,101560.0,0.13937008]
[1737421048561,7.173e-05,101570.0,101560.0,0.00147697]
[1737421048859,0.40030073,101570.0,101560.0,0.00147697]
[1737421049667,7.173e-05,101570.0,101560.0,0.04090997]
[1737421049962,7.173e-05,101570.0,101560.0,0.50016908]
[1737421050260,7.173e-05,101570.0,101560.0,0.04090997]
[1737421051262,0.36227725,101600.0,101580.0,0.039424]
[1737421051463,0.400223,101590.0,101560.0,0.13936908]
[1737421051762,0.3608,101580.0,101560.0,0.04090997]
[1737421051953,0.3608,101570.0,101560.0,0.04090997]
[1737421052155,0.3608,101580.0,101560.0,0.04090997]
[1737421052454,0.36088258,101570.0,101560.0,0.00147697]
[1737421052653,0.57923684,101570.0,101560.0,0.00147697]
[1737421053159,0.57923684,101570.0,101540.0,7.141e-05]
[1737421053160,0.039437,101550.0,101540.0,7.141e-05]
[1737421053358,0.039443,101540.0,101510.0,0.1663]
[1737421053550,0.039445,101530.0,101510.0,0.1663]
[1737421053755,0.400249,101520.0,101500.0,0.139454]
[1737421054457,9.98e-05,101510.0,101500.0,0.139454]
[1737421055361,0.3608998,101510.0,101500.0,0.139454]
[1737421055553,0.3608998,101510.0,101500.0,0.1]
[1737421056160,0.4003518,101510.0,101500.0,0.1]
[1737421056661,0.4003518,101510.0,101470.0,0.03959293]
[1737421056662,0.039457,101500.0,101470.0,0.03959293]
[1737421056859,0.40035971,101490.0,101470.0,0.03959293]
[1737421057062,9.871e-05,101490.0,101480.0,0.039464]
[1737421057358,0.36089871,101490.0,101480.0,0.039464]
[1737421057559,0.36089871,101490.0,101470.0,0.00012593]
[1737421057759,0.36089871,101490.0,101470.0,0.03959293]
[1737421057966,0.40035971,101490.0,101470.0,0.03959293]
[1737421058358,9.871e-05,101490.0,101480.0,0.039464]
[1737421058662,0.40035871,101490.0,101470.0,0.03959293]
[1737421058861,0.3608,101480.0,101470.0,0.03959293]
[1737421059057,0.36089871,101490.0,101470.0,0.03959293]
[1737421059459,0.36089871,101490.0,101480.0,0.039464]
[1737421060068,0.36227825,101530.0,101520.0,0.039449]
[1737421060757,0.36227825,101530.0,101490.0,0.00147791]
[1737421060965,0.00010251,101520.0,101490.0,0.36227791]
[1737421061162,0.00010251,101520.0,101500.0,0.039453]
[1737421061366,0.36090251,101520.0,101500.0,0.400253]
[1737421061562,0.36090251,101520.0,101510.0,0.039452]
[1737421061766,0.00147825,101530.0,101510.0,0.039452]
[1737421061967,0.400243,101540.0,101520.0,0.039445]
[1737421062268,0.039446,101530.0,101510.0,0.039452]
[1737421062456,0.400246,101530.0,101510.0,0.039452]
[1737421062663,0.3608,101520.0,101510.0,0.039452]
[1737421062861,0.400248,101520.0,101510.0,0.039452]
[1737421063063,0.039448,101520.0,101510.0,0.039452]
[1737421063262,0.400248,101520.0,101490.0,0.00147791]
[1737421063467,0.400248,101520.0,101500.0,0.039455]
[1737421063667,0.3608,101510.0,101500.0,0.039455]
[1737421063965,0.3608,101530.0,101500.0,0.63823772]
[1737421064168,0.039448,101520.0,101510.0,0.03945]
[1737421064364,0.400248,101520.0,101510.0,0.03945]
[1737421064662,0.3608,101530.0,101520.0,0.039448]
[1737421065459,0.11422296,101550.0,101520.0,0.57917326]
[1737421065667,0.11422296,101550.0,101540.0,0.57916626]
[1737421065873,0.14342525,101560.0,101550.0,0.039437]
[1737421066066,0.17331322,101570.0,101560.0,0.039433]
[1737421066267,0.17331322,101570.0,101560.0,0.57915826]
[1737421066470,9.4e-07,101570.0,101560.0,0.57915826]
[1737421066669,0.14319242,101580.0,101570.0,0.039429]
[1737421066876,0.53411322,101590.0,101580.0,0.039425]
[1737421067170,0.17331322,101590.0,101580.0,0.93995026]
[1737421067475,0.06999522,101590.0,101580.0,0.67760937]
[1737421067966,0.06999522,101590.0,101580.0,0.31680937]
[1737421068166,0.06999522,101590.0,101580.0,0.21835026]
[1737421068366,0.06999522,101590.0,101580.0,0.039425]
[1737421068561,0.47022022,101590.0,101560.0,0.039429]
[1737421069072,0.039426,101580.0,101560.0,0.039429]
[1737421069368,0.43079522,101590.0,101580.0,0.039425]
[1737421069573,0.47021622,101590.0,101570.0,0.039428]
[1737421070074,0.3608,101580.0,101540.0,0.5321118]
[1737421070279,0.03943,101570.0,101550.0,0.039435]
[1737421070468,0.039433,101560.0,101540.0,0.0001118]
[1737421070669,0.3608,101550.0,101540.0,0.0001118]
[1737421070875,0.3608,101550.0,101540.0,0.0395528]
[1737421071778,0.3608,101570.0,101560.0,0.039433]
[1737421071975,0.400229,101570.0,101550.0,0.039437]
[1737421072170,0.400229,101570.0,101540.0,0.0001118]
[1737421072171,0.400234,101560.0,101540.0,0.0001118]
[1737421072375,0.400237,101550.0,101540.0,0.0001118]
[1737421072863,0.400237,101550.0,101540.0,0.0395528]
[1737421073066,0.3608,101550.0,101540.0,0.0395528]
[1737421073462,1.86140001,101570.0,101540.0,0.17903706]
[1737421073674,0.400231,101570.0,101550.0,0.039437]
[1737421073869,0.3608,101560.0,101550.0,0.039437]
[1737421075274,0.3608,101560.0,101540.0,0.0001118]
[1737421075476,0.3608,101550.0,101540.0,0.0001118]
[1737421075779,0.3608,101550.0,101540.0,0.0395538]
[1737421075973,0.3608,101570.0,101550.0,0.039438]
[1737421076172,0.3608,101570.0,101560.0,0.039434]
[1737421076374,0.40170447,101580.0,101560.0,0.039434]
[1737421076375,0.36227747,101580.0,101560.0,0.039434]
[1737421076581,0.36227747,101580.0,101570.0,0.03943]
[1737421077280,0.039431,101570.0,101550.0,0.039438]
[1737421077483,0.3608,101560.0,101550.0,0.039438]
[1737421078165,0.400234,101560.0,101550.0,0.039438]
[1737421078576,0.039438,101550.0,101540.0,0.0001118]
[1737421078974,0.400234,101560.0,101540.0,0.0395518]
[1737421079169,1.900234,101560.0,101540.0,0.0395518]
[1737421079873,0.3608,101550.0,101540.0,0.0395518]
[1737421080075,0.3608,101560.0,101540.0,0.0395518]
[1737421080379,0.3608,101570.0,101550.0,0.039438]
[1737421080577,0.3608,101570.0,101560.0,0.039434]
[1737421081078,0.36227747,101580.0,101560.0,0.400234]
[1737421081079,0.3608,101580.0,101560.0,0.400234]
[1737421081273,0.1,101600.0,101590.0,0.039422]
[1737421082374,0.1,101600.0,101590.0,0.57914726]
[1737421082580,1e-06,101600.0,101590.0,0.6775773]
[1737421082780,1e-06,101600.0,101590.0,0.72897839]
[1737421082979,1e-06,101600.0,101590.0,0.18925313]
[1737421083184,1e-06,101600.0,101590.0,0.761022]
[1737421083380,1e-06,101600.0,101590.0,0.400222]
[1737421083681,0.400219,101600.0,101580.0,0.039426]
[1737421084174,0.400219,101600.0,101590.0,0.039422]
[1737421084376,0.039419,101600.0,101590.0,0.039422]
[1737421084685,0.400219,101600.0,101590.0,0.039422]
[1737421084984,1e-06,101600.0,101590.0,0.039422]
[1737421086281,1e-06,101600.0,101590.0,0.13785204]
[1737421086582,0.3608,101630.0,101620.0,0.039411]
[1737421086886,0.580596,101660.0,101640.0,0.039401]
[1737421087082,0.58674763,101660.0,101640.0,0.039401]
[1737421087282,0.400196,101660.0,101650.0,0.039399]
[1737421088286,0.0394,101650.0,101630.0,0.039405]
[1737421088487,0.4002,101650.0,101630.0,0.039405]
[1737421089188,0.3608,101650.0,101640.0,0.039403]
[1737421090595,0.3608,101650.0,101610.0,0.1694]
[1737421090796,0.3608,101640.0,101620.0,0.039409]
[1737421091096,0.400203,101640.0,101620.0,0.039409]
[1737421091498,0.400207,101630.0,101610.0,0.039414]
[1737421091691,0.039407,101630.0,101610.0,0.039414]
[1737421091891,0.400207,101630.0,101610.0,0.039414]
[1737421092195,0.400207,101630.0,101580.0,0.039425]
[1737421092196,0.039421,101600.0,101580.0,0.039425]
[1737421092391,0.3608,101590.0,101580.0,0.039425]
[1737421092591,0.3608,101590.0,101560.0,0.17561445]
[1737421092791,0.3608,101570.0,101560.0,0.21504745]
[1737421092987,0.03943,101570.0,101560.0,0.17561445]
[1737421093298,0.40023,101570.0,101560.0,0.17561445]
[1737421093500,0.40023,101570.0,101540.0,0.33276355]
[1737421093501,0.87915526,101570.0,101540.0,0.29280255]
[1737421093799,0.761038,101550.0,101540.0,0.29280255]
[1737421094186,0.761038,101550.0,101530.0,0.3512289]
[1737421094187,1.23996326,101550.0,101530.0,0.3512289]
[1737421094393,0.03945,101520.0,101500.0,0.14093384]
[1737421094600,0.400253,101510.0,101500.0,0.10147784]
[1737421094901,0.400253,101510.0,101500.0,0.1]
[1737421095295,0.57917826,101510.0,101500.0,0.1]
[1737421095501,0.039465,101490.0,101470.0,0.47541664]
[1737421095698,0.36088658,101480.0,101470.0,0.51488564]
[1737421095895,8.658e-05,101480.0,101470.0,0.51488564]
[1737421096090,0.36709654,101510.0,101470.0,0.79235248]
[1737421096294,0.04575154,101510.0,101480.0,0.039464]
[1737421096491,0.400255,101510.0,101480.0,0.039464]
[1737421096894,0.7216,101490.0,101480.0,0.039464]
[1737421097400,0.7216,101490.0,101470.0,0.1746]
[1737421097590,0.3608,101480.0,101470.0,0.1746]
[1737421097795,0.3608,101480.0,101470.0,0.214069]
[1737421098097,0.400261,101490.0,101470.0,0.214069]
[1737421098295,0.400261,101490.0,101470.0,0.1746]
[1737421098497,0.400266,101480.0,101460.0,0.04095135]
[1737421099995,0.3608,101470.0,101460.0,0.00147835]
[1737421100200,0.3608,101470.0,101460.0,0.04095135]
[1737421100402,0.3608,101470.0,101460.0,0.00147835]
[1737421100808,0.400269,101470.0,101460.0,0.00147835]
[1737421100997,0.6608,101470.0,101440.0,0.1775853]
[1737421101197,0.761077,101450.0,101440.0,8.53e-05]
[1737421101902,0.039481,101440.0,101410.0,0.222891]
[1737421102095,0.3608,101430.0,101410.0,0.222891]
[1737421102895,9.071e-05,101420.0,101410.0,0.222891]
[1737421103608,9.071e-05,101420.0,101410.0,0.039491]
[1737421104109,9.071e-05,101420.0,101410.0,0.13809088]
[1737421104301,9.071e-05,101420.0,101410.0,0.49529088]
[1737421105505,0.3608,101450.0,101440.0,0.039481]
[1737421105704,0.53424584,101450.0,101440.0,0.039481]
[1737421106103,0.53424584,101450.0,101440.0,0.13805658]
[1737421106508,0.53424584,101450.0,101440.0,0.039481]
[1737421106710,0.53424584,101450.0,101430.0,0.224484]
[1737421107002,0.039485,101430.0,101410.0,0.039492]
[1737421107209,0.3608,101420.0,101410.0,0.039492]
[1737421107404,0.400291,101420.0,101400.0,0.14097534]
[1737421107598,0.3608,101410.0,101400.0,0.10147934]
[1737421107994,0.3608,101410.0,101390.0,0.224499]
[1737421108200,0.3608,101410.0,101400.0,0.06418916]
[1737421108396,1.900291,101420.0,101410.0,0.039492]
[1737421108397,0.36140001,101420.0,101410.0,0.039492]
[1737421108603,0.3608,101420.0,101410.0,0.039492]
[1737421108800,0.3608,101420.0,101410.0,0.06418516]
[1737421109002,0.400288,101420.0,101410.0,0.02469316]
[1737421109409,0.400288,101420.0,101390.0,0.395497]
[1737421109604,0.400292,101410.0,101390.0,0.039497]
[1737421109904,0.3608,101400.0,101390.0,0.039497]
[1737421110110,0.3608,101400.0,101390.0,0.06419105]